bitfinex/quotes_BTCUSD_20241216
["timestamp","ask_amount","ask_price","bid_price","bid_amount"]
[1734324070177,1.23576593,104570.0,104560.0,0.0001726]
[1734324071374,1.25499415,104570.0,104560.0,0.0001726]
[1734324072376,1.16959503,104570.0,104560.0,0.0001726]
[1734324073773,1.17457247,104570.0,104560.0,0.0001726]
[1734324076949,1.17739057,104570.0,104560.0,0.0001726]
[1734324077144,1.15439057,104570.0,104560.0,0.0001726]
[1734324079757,1.24062495,104570.0,104560.0,0.0001726]
[1734324079975,1.26362495,104570.0,104560.0,0.0001726]
[1734324080125,1.34884863,104570.0,104560.0,0.0001726]
[1734324080302,1.26362495,104570.0,104560.0,0.0001726]
[1734324080891,0.96362495,104570.0,104560.0,0.0001726]
[1734324082342,0.87739057,104570.0,104560.0,0.0001726]
[1734324083754,0.80739721,104570.0,104560.0,0.0001726]
[1734324087367,0.89264281,104570.0,104560.0,0.0001726]
[1734324087774,0.80739721,104570.0,104560.0,0.0001726]
[1734324087954,0.89264281,104570.0,104560.0,0.0001726]
[1734324088359,0.86564281,104570.0,104560.0,0.0001726]
[1734324088564,1.08768647,104570.0,104560.0,0.0001726]
[1734324088910,1.11468647,104570.0,104560.0,0.0001726]
[1734324089116,0.98681807,104570.0,104560.0,0.0001726]
[1734324089478,0.98681807,104570.0,104520.0,0.36279649]
[1734324089479,0.79555907,104570.0,104520.0,0.36279649]
[1734324089648,0.191315,104540.0,104520.0,0.36279649]
[1734324089858,0.191315,104540.0,104520.0,0.55413649]
[1734324090046,0.191315,104540.0,104520.0,0.36279649]
[1734324090894,0.191315,104540.0,104520.0,0.36296562]
[1734324091861,0.191315,104540.0,104520.0,0.55430662]
[1734324092170,0.439205,104550.0,104520.0,0.55430662]
[1734324092366,0.056588,104540.0,104520.0,0.5641943]
[1734324092543,0.5334957,104550.0,104540.0,0.079]
[1734324093723,0.53847248,104550.0,104540.0,0.079]
[1734324095859,0.55745284,104550.0,104540.0,0.079]
[1734324096888,0.56726296,104550.0,104540.0,0.079]
[1734324099832,0.51067496,104550.0,104540.0,0.079]
[1734324100078,0.56726296,104550.0,104540.0,0.079]
[1734324103549,0.51067496,104550.0,104540.0,0.079]
[1734324103807,0.51067496,104550.0,104540.0,0.270314]
[1734324103808,0.00497678,104550.0,104540.0,0.270314]
[1734324104018,0.21419048,104560.0,104550.0,0.268796]
[1734324104224,0.08567619,104560.0,104550.0,0.268796]
[1734324104441,1.06261993,104570.0,104550.0,0.268796]
[1734324104678,0.056588,104560.0,104550.0,0.268796]
[1734324104872,0.056588,104560.0,104550.0,0.0775]
[1734324105302,0.14226419,104560.0,104550.0,0.0775]
[1734324105549,0.056588,104560.0,104550.0,0.0775]
[1734324106860,0.247865,104560.0,104550.0,0.0775]
[1734324115424,0.2480376,104560.0,104550.0,0.0775]
[1734324115787,0.2480376,104560.0,104540.0,0.52368484]
[1734324115788,0.4393256,104560.0,104540.0,0.52368484]
[1734324115985,0.4393256,104560.0,104540.0,0.33238484]
[1734324116485,0.4393256,104560.0,104540.0,0.52369784]
[1734324118253,0.4393256,104560.0,104540.0,0.43727801]
[1734324118668,0.6306146,104560.0,104540.0,0.44712603]
[1734324118876,0.6306146,104560.0,104540.0,0.25581303]
[1734324123375,0.5334817,104550.0,104530.0,0.0759]
[1734324123575,0.5334817,104550.0,104520.0,0.07615543]
[1734324123576,0.247902,104540.0,104520.0,0.07615543]
[1734324123805,0.191332,104530.0,104510.0,0.57047015]
[1734324123964,0.756555,104540.0,104520.0,0.19135]
[1734324124170,0.565228,104540.0,104520.0,0.19135]
[1734324124558,0.565228,104540.0,104520.0,0.3827]
[1734324125611,0.756553,104540.0,104520.0,0.3827]
[1734324126176,0.565227,104540.0,104520.0,0.3827]
[1734324126812,0.565227,104540.0,104520.0,0.3827863]
[1734324126984,0.756552,104540.0,104520.0,0.3827863]
[1734324127207,0.565227,104540.0,104520.0,0.3827863]
[1734324128174,0.508639,104540.0,104520.0,0.3827863]
[1734324128376,0.191332,104530.0,104520.0,0.1500863]
[1734324129458,0.75369296,104540.0,104520.0,0.1500863]
[1734324129771,0.191332,104530.0,104520.0,0.1500863]
[1734324131573,0.4650107,104530.0,104520.0,8.63e-05]
[1734324133263,0.6281867,104530.0,104520.0,8.63e-05]
[1734324133426,0.31865,104520.0,104510.0,0.00010776]
[1734324133626,0.66853214,104520.0,104510.0,0.00010776]
[1734324133928,0.6275093,104520.0,104510.0,0.00010776]
[1734324134130,0.8001187,104520.0,104510.0,0.00010776]
[1734324134580,0.8501187,104520.0,104510.0,0.00010776]
[1734324134783,0.94429396,104520.0,104510.0,0.00010776]
[1734324135020,0.94423846,104520.0,104510.0,0.00010776]
[1734324135220,1.30255641,104520.0,104510.0,0.00010776]
[1734324135433,1.43126428,104520.0,104510.0,0.00010776]
[1734324136123,1.30247355,104520.0,104510.0,0.00010776]
[1734324136961,1.13086307,104520.0,104510.0,0.00010776]
[1734324137882,1.13086307,104520.0,104510.0,0.00019406]
[1734324138086,1.00215521,104520.0,104510.0,0.00019406]
[1734324139571,1.00204906,104520.0,104510.0,0.00019406]
[1734324141256,0.91643283,104520.0,104510.0,0.00019406]
[1734324141662,1.00204906,104520.0,104510.0,0.00019406]
[1734324142421,0.91643283,104520.0,104510.0,0.00019406]
[1734324142623,0.96643283,104520.0,104510.0,0.00019406]
[1734324144421,0.88012813,104520.0,104510.0,0.00019406]
[1734324144619,0.96643283,104520.0,104510.0,0.00019406]
[1734324148059,0.91643283,104520.0,104510.0,0.00019406]
[1734324149239,0.91660543,104520.0,104510.0,0.00019406]
[1734324150596,0.5575917,104500.0,104490.0,8.63e-05]
[1734324150814,0.88236236,104500.0,104490.0,8.63e-05]
[1734324151139,0.91906983,104500.0,104490.0,8.63e-05]
[1734324151984,0.83276513,104500.0,104490.0,8.63e-05]
[1734324152421,0.91906983,104500.0,104490.0,8.63e-05]
[1734324153044,0.83276513,104500.0,104490.0,8.63e-05]
[1734324153839,0.84987929,104500.0,104490.0,8.63e-05]
[1734324154388,0.93618399,104500.0,104490.0,8.63e-05]
[1734324156167,0.84987929,104500.0,104490.0,8.63e-05]
[1734324156722,0.80570403,104500.0,104490.0,8.63e-05]
[1734324158035,0.73269245,104500.0,104490.0,8.63e-05]
[1734324158163,0.80172277,104500.0,104490.0,8.63e-05]
[1734324159202,0.75172277,104500.0,104490.0,8.63e-05]
[1734324159607,0.80172277,104500.0,104490.0,8.63e-05]
[1734324159958,0.68842965,104500.0,104490.0,8.63e-05]
[1734324160160,0.77475123,104500.0,104490.0,8.63e-05]
[1734324163020,0.86892649,104500.0,104490.0,8.63e-05]
[1734324164042,0.77475123,104500.0,104490.0,8.63e-05]
[1734324174280,0.8603283,104500.0,104490.0,8.63e-05]
[1734324175089,0.98869391,104500.0,104490.0,8.63e-05]
[1734324176223,0.98742594,104500.0,104490.0,8.63e-05]
[1734324176803,0.90110436,104500.0,104490.0,8.63e-05]
[1734324177007,0.98742594,104500.0,104490.0,8.63e-05]
[1734324177208,1.15858009,104500.0,104490.0,8.63e-05]
[1734324177414,0.98742594,104500.0,104490.0,8.63e-05]
[1734324178062,1.15858009,104500.0,104490.0,8.63e-05]
[1734324178729,1.17830622,104500.0,104490.0,8.63e-05]
[1734324179130,1.30667184,104500.0,104490.0,8.63e-05]
[1734324182112,1.33364842,104500.0,104490.0,8.63e-05]
[1734324186216,1.20528281,104500.0,104490.0,8.63e-05]
[1734324186781,1.18555668,104500.0,104490.0,8.63e-05]
[1734324188893,1.1289076,104500.0,104490.0,8.63e-05]
[1734324189008,1.18555668,104500.0,104490.0,8.63e-05]
[1734324189214,1.03555668,104500.0,104490.0,8.63e-05]
[1734324190579,0.98555668,104500.0,104490.0,8.63e-05]
[1734324190763,0.90857779,104500.0,104490.0,8.63e-05]
[1734324191159,0.90951574,104500.0,104490.0,8.63e-05]
[1734324191739,0.95136633,104500.0,104490.0,8.63e-05]
[1734324192650,0.95246454,104500.0,104490.0,8.63e-05]
[1734324193218,0.83916638,104500.0,104490.0,8.63e-05]
[1734324193419,0.85828928,104500.0,104490.0,8.63e-05]
[1734324193841,0.74499112,104500.0,104490.0,8.63e-05]
[1734324194058,0.85828928,104500.0,104490.0,8.63e-05]
[1734324194493,0.85828928,104500.0,104480.0,8.63e-05]
[1734324194494,0.35470316,104490.0,104480.0,8.63e-05]
[1734324194698,0.35470316,104490.0,104480.0,0.00014268]
[1734324194699,1.20583577,104490.0,104480.0,0.00014268]
[1734324194903,0.71027659,104490.0,104480.0,0.00014268]
[1734324195102,0.96810603,104490.0,104480.0,0.00014268]
[1734324195454,0.38782216,104480.0,104470.0,0.0135123]
[1734324195660,0.99790202,104480.0,104470.0,0.0135123]
[1734324196041,1.00288262,104480.0,104470.0,0.0135123]
[1734324196241,0.88958446,104480.0,104470.0,0.0135123]
[1734324196444,0.56226056,104480.0,104470.0,0.0135123]
[1734324197528,0.50561148,104480.0,104470.0,0.0135123]
[1734324197725,0.56226056,104480.0,104470.0,0.0135123]
[1734324199484,0.58177143,104480.0,104470.0,0.0135123]
[1734324201641,0.58180547,104480.0,104470.0,0.0135123]
[1734324201802,0.59375746,104480.0,104470.0,0.0135123]
[1734324202113,0.65040654,104480.0,104470.0,0.0135123]
[1734324202307,0.82236672,104480.0,104470.0,0.0135123]
[1734324202530,0.80035506,104480.0,104470.0,0.0135123]
[1734324204470,0.80031542,104480.0,104470.0,0.0135123]
[1734324206398,0.9366645,104480.0,104470.0,0.0135123]
[1734324206581,0.93659196,104480.0,104470.0,0.0135123]
[1734324206775,0.87994288,104480.0,104470.0,0.0135123]
[1734324207321,0.93659196,104480.0,104470.0,0.0135123]
[1734324207595,0.87994288,104480.0,104470.0,0.0135123]
[1734324208308,0.87994288,104480.0,104470.0,0.0135987]
[1734324208540,0.88011568,104480.0,104470.0,0.0135987]
[1734324210224,0.93676476,104480.0,104470.0,0.0135987]
[1734324210458,1.19995266,104480.0,104470.0,0.0135987]
[1734324210962,1.1139975,104480.0,104470.0,0.0135987]
[1734324211436,0.98506476,104480.0,104470.0,0.0135987]
[1734324211702,0.81315444,104480.0,104470.0,0.0135987]
[1734324215401,0.268558,104470.0,104440.0,0.15]
[1734324215640,0.34241678,104460.0,104440.0,0.15]
[1734324215962,0.72536378,104460.0,104440.0,0.15]
[1734324216956,0.72536378,104460.0,104440.0,0.341496]
[1734324217177,0.4772377,104460.0,104440.0,0.341496]
[1734324217642,0.4772347,104460.0,104440.0,0.341496]
[1734324217811,0.6687077,104460.0,104440.0,0.341496]
[1734324218878,0.6687077,104460.0,104440.0,0.15]
[1734324221154,0.6687077,104460.0,104440.0,0.1500864]
[1734324221791,0.6687077,104460.0,104440.0,0.3415824]
[1734324222729,0.76288296,104460.0,104440.0,0.3415824]
[1734324223109,0.6687077,104460.0,104440.0,0.3415824]
[1734324223292,0.191479,104450.0,104440.0,0.1500864]
[1734324224152,0.273179,104450.0,104440.0,8.64e-05]
[1734324224560,0.0818076,104450.0,104440.0,8.64e-05]
[1734324225271,0.2732866,104450.0,104440.0,8.64e-05]
[1734324228777,0.35886354,104450.0,104440.0,8.64e-05]
[1734324229218,0.2732866,104450.0,104440.0,8.64e-05]
[1734324229394,0.20628659,104450.0,104440.0,8.64e-05]
[1734324232786,0.26293567,104450.0,104440.0,8.64e-05]
[1734324234647,0.19593566,104450.0,104440.0,8.64e-05]
[1734324234811,0.05664908,104450.0,104440.0,8.64e-05]
[1734324235225,0.34241878,104450.0,104440.0,8.64e-05]
[1734324235603,0.34740032,104450.0,104440.0,8.64e-05]
[1734324237051,0.29075124,104450.0,104440.0,8.64e-05]
[1734324237281,0.34740032,104450.0,104440.0,8.64e-05]
[1734324237469,0.39430032,104450.0,104440.0,8.64e-05]
[1734324237769,0.47440032,104450.0,104440.0,8.64e-05]
[1734324238054,0.56027385,104450.0,104440.0,8.64e-05]
[1734324238263,0.47440032,104450.0,104440.0,8.64e-05]
[1734324239465,0.28292132,104450.0,104440.0,8.64e-05]
[1734324239671,0.47440032,104450.0,104440.0,8.64e-05]
[1734324241350,0.22627224,104450.0,104440.0,8.64e-05]
[1734324241554,0.14617224,104450.0,104440.0,8.64e-05]
[1734324241976,0.33765124,104450.0,104440.0,8.64e-05]
[1734324243337,0.00498154,104450.0,104440.0,0.1915834]
[1734324243545,0.00515414,104450.0,104440.0,0.1915834]
[1734324244295,0.00515414,104450.0,104440.0,0.2703834]
[1734324245709,0.0001726,104450.0,104440.0,0.53368156]
[1734324245941,0.0001726,104450.0,104440.0,0.47703248]
[1734324246386,0.0001726,104450.0,104440.0,0.56296021]
[1734324248094,0.0001726,104450.0,104440.0,0.73689999]
[1734324248506,0.0001726,104450.0,104440.0,1.26467066]
[1734324248862,0.0001726,104450.0,104440.0,1.32131974]
[1734324249507,0.0001728,104480.0,104460.0,0.27056]
[1734324249771,0.0001728,104480.0,104470.0,0.191442]
[1734324249997,0.0001728,104480.0,104470.0,0.269542]
[1734324250510,0.0001728,104480.0,104470.0,0.47619108]
[1734324250974,0.0001728,104480.0,104470.0,0.5621045]
[1734324251337,0.0001728,104480.0,104470.0,0.47619108]
[1734324253144,0.0001728,104480.0,104470.0,0.91491442]
[1734324253344,0.0001728,104480.0,104470.0,0.7793952]
[1734324253568,0.0001728,104480.0,104470.0,1.18480877]
[1734324253785,0.0001728,104480.0,104470.0,1.35663562]
[1734324254161,0.0001728,104480.0,104470.0,0.90826534]
[1734324254661,0.0001728,104480.0,104470.0,1.18418919]
[1734324255282,0.0001728,104480.0,104470.0,0.7793952]
[1734324256317,0.0001728,104480.0,104470.0,0.83604428]
[1734324256516,0.0001728,104480.0,104470.0,0.69348178]
[1734324256732,0.0001728,104480.0,104470.0,0.7793952]
[1734324257327,0.0001728,104480.0,104470.0,0.69348178]
[1734324258368,0.0001728,104480.0,104470.0,0.70477011]
[1734324259554,0.1279728,104510.0,104500.0,0.191387]
[1734324259555,0.06231839,104510.0,104500.0,0.191387]
[1734324266232,0.06249099,104510.0,104500.0,0.191387]
[1734324266578,0.0623462,104510.0,104500.0,0.191387]
[1734324266984,0.0001726,104510.0,104500.0,0.191387]
[1734324267774,0.0001726,104510.0,104500.0,0.20300061]
[1734324268211,0.0001726,104510.0,104500.0,0.56058947]
[1734324268420,0.0001726,104510.0,104500.0,0.50394039]
[1734324269420,0.0473726,104520.0,104500.0,0.50394039]
[1734324269421,0.0235452,104520.0,104500.0,0.50394039]
[1734324269656,0.00016927,104520.0,104500.0,0.69531239]
[1734324269787,0.00016927,104520.0,104510.0,0.191369]
[1734324271520,0.07876927,104520.0,104510.0,0.191369]
[1734324272788,0.07876927,104520.0,104500.0,0.44727631]
[1734324273172,0.07876927,104520.0,104510.0,0.191369]
[1734324275528,0.07876927,104520.0,104500.0,0.63864831]
[1734324275668,0.07876927,104520.0,104510.0,0.191369]
[1734324277589,0.07876927,104520.0,104510.0,0.1914553]
[1734324277762,0.07894187,104520.0,104510.0,0.1914553]
[1734324280262,0.18329095,104520.0,104510.0,8.63e-05]
[1734324280382,0.52552834,104520.0,104510.0,8.63e-05]
[1734324284472,0.53720645,104520.0,104510.0,8.63e-05]
[1734324284644,0.55604132,104520.0,104510.0,8.63e-05]
[1734324285517,0.6126904,104520.0,104510.0,8.63e-05]
[1734324291311,0.69833173,104520.0,104510.0,8.63e-05]
[1734324292236,0.82679372,104520.0,104510.0,8.63e-05]
[1734324292862,0.65689887,104520.0,104510.0,8.63e-05]
[1734324293061,0.58508596,104520.0,104510.0,8.63e-05]
[1734324293404,0.71354795,104520.0,104510.0,8.63e-05]
[1734324293936,0.77019703,104520.0,104510.0,8.63e-05]
[1734324294357,0.94147969,104520.0,104510.0,8.63e-05]
[1734324294759,1.03565495,104520.0,104510.0,8.63e-05]
[1734324295183,1.2509299,104520.0,104510.0,8.63e-05]
[1734324296094,1.03640814,104520.0,104510.0,8.63e-05]
[1734324296322,1.15675464,104520.0,104510.0,8.63e-05]
[1734324296575,1.12592495,104520.0,104510.0,8.63e-05]
[1734324296735,0.99721189,104520.0,104510.0,8.63e-05]
[1734324297337,0.82559448,104520.0,104510.0,8.63e-05]
[1734324299592,0.86849884,104520.0,104510.0,8.63e-05]
[1734324299746,0.86864212,104520.0,104510.0,8.63e-05]
[1734324299948,0.96281738,104520.0,104510.0,8.63e-05]
[1734324300157,0.9199017,104520.0,104510.0,8.63e-05]
[1734324301626,0.96281738,104520.0,104510.0,8.63e-05]
[1734324302120,0.91986768,104520.0,104510.0,8.63e-05]
[1734324302323,0.91985911,104520.0,104510.0,8.63e-05]
[1734324302535,0.91983258,104520.0,104510.0,8.63e-05]
[1734324302909,0.70524798,104520.0,104510.0,8.63e-05]
[1734324303109,0.919837,104520.0,104510.0,8.63e-05]
[1734324304462,1.09147956,104520.0,104510.0,8.63e-05]
[1734324304603,0.919837,104520.0,104510.0,8.63e-05]
[1734324305294,1.09144269,104520.0,104510.0,8.63e-05]
[1734324305463,1.09144337,104520.0,104510.0,8.63e-05]
[1734324307389,0.919837,104520.0,104510.0,8.63e-05]
[1734324307600,1.09136766,104520.0,104510.0,8.63e-05]
[1734324311312,0.382872,104480.0,104450.0,0.59287819]
[1734324311685,0.53381078,104480.0,104460.0,0.19146]
[1734324311885,0.72524878,104480.0,104460.0,0.19146]
[1734324312447,0.6685997,104480.0,104460.0,0.19202444]
[1734324315331,0.191442,104470.0,104460.0,0.15056444]
[1734324317158,0.81971028,104480.0,104460.0,0.34202444]
[1734324317348,0.62827228,104480.0,104460.0,0.34202444]
[1734324317527,0.7630622,104480.0,104460.0,0.34202444]
[1734324318354,0.5716232,104480.0,104460.0,0.34202444]
[1734324318692,0.81970828,104480.0,104460.0,0.34202444]
[1734324319467,0.62827228,104480.0,104460.0,0.34202444]
[1734324320419,0.81970928,104480.0,104460.0,0.34202444]
[1734324322795,0.5716232,104480.0,104460.0,0.34211074]
[1734324323364,0.7630592,104480.0,104460.0,0.34211074]
[1734324328284,0.62827228,104480.0,104460.0,0.15065074]
[1734324328560,0.191442,104470.0,104460.0,0.15065074]
[1734324329375,0.12544199,104470.0,104460.0,0.15065074]
[1734324329550,0.62827228,104480.0,104460.0,0.00065074]
[1734324329877,0.191442,104470.0,104460.0,0.00065074]
[1734324333015,0.5716232,104480.0,104460.0,0.19211074]
[1734324333237,0.7630592,104480.0,104460.0,0.19211074]
[1734324333443,0.42388178,104470.0,104460.0,0.00065074]
[1734324334487,0.41453085,104470.0,104460.0,0.00065074]
[1734324335113,0.41470345,104470.0,104460.0,0.00065074]
[1734324336363,0.35805437,104470.0,104450.0,0.15458754]
[1734324336581,0.55007164,104470.0,104450.0,0.15458754]
[1734324336778,0.55007164,104470.0,104450.0,0.34606554]
[1734324337487,0.55007164,104470.0,104450.0,0.15458754]
[1734324338732,0.55007164,104470.0,104450.0,0.34606654]
[1734324338931,0.09502757,104470.0,104460.0,0.19146]
[1734324339494,0.09502757,104470.0,104450.0,0.47046654]
[1734324339705,0.00073687,104470.0,104450.0,0.66193254]
[1734324339927,0.19217987,104470.0,104450.0,0.66193254]
[1734324340302,0.19217987,104470.0,104450.0,0.47045354]
[1734324341133,0.19217987,104470.0,104450.0,0.66192154]
[1734324342013,0.19217987,104470.0,104450.0,0.46041114]
[1734324342489,0.19217987,104470.0,104450.0,0.65187914]
[1734324342691,0.19217987,104470.0,104450.0,0.46041114]
[1734324343098,0.19217987,104470.0,104450.0,0.65188014]
[1734324344024,0.19217987,104470.0,104450.0,0.46041114]
[1734324344351,0.12617986,104470.0,104450.0,0.46041114]
[1734324344550,0.5304285,104480.0,104450.0,0.46041114]
[1734324344856,0.191443,104470.0,104450.0,0.46097541]
[1734324345178,0.191443,104470.0,104450.0,0.65244341]
[1734324347613,0.8161572,104480.0,104450.0,0.65252971]
[1734324348485,0.0001726,104470.0,104460.0,0.19146]
[1734324349515,0.75032979,104480.0,104460.0,0.19146]
[1734324349705,0.83624067,104480.0,104460.0,0.19146]
[1734324350036,0.85508922,104480.0,104460.0,0.19146]
[1734324350642,0.76917834,104480.0,104460.0,0.19146]
[1734324351132,0.35301688,104490.0,104470.0,0.191442]
[1734324351339,0.16161088,104490.0,104470.0,0.382869]
[1734324351543,0.00497893,104490.0,104480.0,0.191424]
[1734324351681,0.00497893,104490.0,104480.0,0.382848]
[1734324352615,0.2908772,104500.0,104490.0,0.191405]
[1734324352815,0.0761,104500.0,104490.0,0.191405]
[1734324354561,0.09498874,104500.0,104490.0,0.191405]
[1734324355536,0.0761,104500.0,104490.0,0.191405]
[1734324355735,0.34162856,104510.0,104500.0,0.191387]
[1734324356210,0.12685136,104510.0,104500.0,0.191387]
[1734324359020,0.08125136,104510.0,104500.0,0.191387]
[1734324363500,0.08125136,104510.0,104490.0,0.191391]
[1734324363501,0.0752,104500.0,104490.0,0.191391]
[1734324364143,0.0752,104500.0,104480.0,0.382822]
[1734324364348,0.20058799,104500.0,104480.0,0.39375965]
[1734324365972,0.20058799,104500.0,104480.0,0.14885349]
[1734324366189,0.20058799,104500.0,104480.0,0.16093765]
[1734324366395,0.20058799,104500.0,104480.0,0.35235065]
[1734324366602,0.00919999,104500.0,104480.0,0.54376165]
[1734324367008,0.00919999,104500.0,104490.0,0.191405]
[1734324369555,0.47080204,104510.0,104490.0,0.191405]
[1734324369962,0.66218404,104510.0,104490.0,0.191405]
[1734324370974,0.47080204,104510.0,104490.0,0.191405]
[1734324371179,0.27942104,104510.0,104490.0,0.382801]
[1734324372227,0.27959364,104510.0,104490.0,0.574196]
[1734324372467,0.27959364,104510.0,104490.0,0.382791]
[1734324372609,0.35859364,104510.0,104490.0,0.382791]
[1734324373250,0.35859364,104510.0,104490.0,0.574187]
[1734324373586,0.35859364,104510.0,104500.0,0.191387]
[1734324373587,0.0001726,104510.0,104500.0,0.191387]
[1734324377395,0.0001726,104510.0,104500.0,0.316687]
[1734324379937,0.0777726,104510.0,104500.0,0.191387]
[1734324380182,0.3634423,104510.0,104490.0,0.191395]
[1734324380419,0.191387,104500.0,104480.0,0.81157195]
[1734324380951,0.191387,104500.0,104480.0,0.73525995]
[1734324382896,0.191387,104500.0,104490.0,0.341405]
[1734324383160,0.56876158,104510.0,104490.0,0.191405]
[1734324383897,0.76014458,104510.0,104490.0,0.191405]
[1734324384722,0.5548233,104510.0,104490.0,0.191405]
[1734324384919,0.7462043,104510.0,104490.0,0.191405]
[1734324385124,0.0001726,104510.0,104490.0,0.58332978]
[1734324385361,0.0001726,104510.0,104500.0,0.32783608]
[1734324385560,0.0001726,104510.0,104500.0,0.42212678]
[1734324388089,0.0001726,104510.0,104500.0,0.3654777]
[1734324388496,0.0001726,104510.0,104500.0,0.6017109]
[1734324388905,0.0001726,104510.0,104500.0,0.341387]
[1734324389527,0.46923219,104530.0,104510.0,0.382729]
[1734324389745,0.00016927,104520.0,104510.0,0.382729]
[1734324392644,0.00016927,104520.0,104500.0,0.62306386]
[1734324392847,0.19151927,104520.0,104500.0,0.62306386]
[1734324393047,0.19151927,104520.0,104500.0,0.81443886]
[1734324394051,0.19151927,104520.0,104500.0,0.81353886]
[1734324396019,0.19151927,104520.0,104500.0,0.81362516]
[1734324396941,0.19151927,104520.0,104500.0,8.63e-05]
[1734324396942,0.4146597,104510.0,104500.0,8.63e-05]
[1734324397323,0.5866831,104510.0,104500.0,8.63e-05]
[1734324397522,0.7153684,104510.0,104500.0,8.63e-05]
[1734324398046,0.5866831,104510.0,104500.0,8.63e-05]
[1734324398262,0.5004499,104510.0,104500.0,8.63e-05]
[1734324399710,0.4146597,104510.0,104500.0,8.63e-05]
[1734324400116,0.5004499,104510.0,104500.0,8.63e-05]
[1734324401432,0.129,104510.0,104500.0,0.1914733]
[1734324401635,0.84944017,104520.0,104500.0,0.1914733]
[1734324401857,0.77215047,104520.0,104500.0,0.3828513]
[1734324402174,0.66220332,104520.0,104500.0,0.3828513]
[1734324402387,0.79088862,104520.0,104500.0,0.3828513]
[1734324402590,0.66220332,104520.0,104500.0,0.3828513]
[1734324402801,0.79088862,104520.0,104500.0,0.3828513]
[1734324404449,0.79106885,104520.0,104500.0,0.3828513]
[1734324406395,0.2856597,104510.0,104500.0,8.63e-05]
[1734324406602,0.3312597,104510.0,104500.0,8.63e-05]
[1734324406727,0.4074597,104510.0,104500.0,8.63e-05]
[1734324407138,0.49332199,104510.0,104500.0,8.63e-05]
[1734324409042,0.49332899,104510.0,104500.0,8.63e-05]
[1734324415193,0.50701486,104510.0,104500.0,8.63e-05]
[1734324417673,0.60119012,104510.0,104500.0,8.63e-05]
[1734324417821,0.94379059,104510.0,104500.0,8.63e-05]
[1734324418027,0.96498665,104510.0,104500.0,8.63e-05]
[1734324418214,0.96996661,104510.0,104500.0,8.63e-05]
[1734324421561,0.96993047,104510.0,104500.0,8.63e-05]
[1734324424797,1.1844063,104510.0,104500.0,8.63e-05]
[1734324425017,0.92683436,104510.0,104500.0,8.63e-05]
[1734324425431,0.96993047,104510.0,104500.0,8.63e-05]
[1734324425733,0.92680875,104510.0,104500.0,8.63e-05]
[1734324426103,0.92680449,104510.0,104500.0,8.63e-05]
[1734324427515,0.241405,104490.0,104480.0,8.63e-05]
[1734324427718,0.84896932,104490.0,104480.0,8.63e-05]
[1734324427941,0.76273612,104490.0,104480.0,8.63e-05]
[1734324430026,0.62650292,104490.0,104480.0,8.63e-05]
[1734324430248,0.2856957,104490.0,104480.0,8.63e-05]
[1734324430575,0.2856957,104490.0,104460.0,0.59829584]
[1734324430773,0.6685327,104490.0,104460.0,0.59829584]
[1734324432954,0.66726486,104490.0,104460.0,0.59829584]
[1734324433689,0.66726486,104490.0,104460.0,0.67629584]
[1734324434877,0.74986486,104490.0,104460.0,0.67629584]
[1734324436704,0.01920083,104480.0,104460.0,0.67629584]
[1734324437889,0.01920083,104480.0,104460.0,0.67686011]
[1734324438123,0.55844286,104490.0,104470.0,0.191442]
[1734324438332,0.55844286,104490.0,104470.0,0.382884]
[1734324438996,0.74985886,104490.0,104470.0,0.382884]
[1734324439204,0.55844286,104490.0,104470.0,0.382884]
[1734324439401,0.74985986,104490.0,104470.0,0.382884]
[1734324439779,0.55844286,104490.0,104470.0,0.382884]
[1734324440190,0.74985986,104490.0,104470.0,0.382884]
[1734324441009,0.74985986,104490.0,104470.0,0.191442]
[1734324441216,0.74985986,104490.0,104460.0,0.31531127]
[1734324441592,0.74985986,104490.0,104470.0,0.191442]
[1734324441798,0.55844286,104490.0,104470.0,0.191442]
[1734324441996,0.57768579,104490.0,104470.0,0.191442]
[1734324442176,0.57768579,104490.0,104470.0,0.1915283]
[1734324443869,0.57768579,104490.0,104470.0,0.3829603]
[1734324443870,0.29198009,104490.0,104470.0,0.3829603]
[1734324444074,0.29198009,104490.0,104470.0,0.5743923]
[1734324444608,0.58764003,104490.0,104470.0,0.3829503]
[1734324445069,0.58764003,104490.0,104470.0,0.3829603]
[1734324446065,0.58764003,104490.0,104470.0,0.1915183]
[1734324446269,0.58764003,104490.0,104470.0,0.3829603]
[1734324446757,0.60074725,104490.0,104470.0,0.3829603]
[1734324447134,0.60074725,104490.0,104470.0,0.1915183]
[1734324447401,0.0798,104480.0,104460.0,0.191452]
[1734324447684,0.0798,104480.0,104460.0,0.382904]
[1734324447685,0.271224,104480.0,104460.0,0.382904]
[1734324447893,0.2857427,104470.0,104450.0,0.09166493]
[1734324448097,0.42218564,104470.0,104450.0,0.16406493]
[1734324448234,0.42218564,104470.0,104450.0,0.35553793]
[1734324448235,0.61363964,104470.0,104450.0,0.35553793]
[1734324448439,0.5569967,104470.0,104450.0,0.35553793]
[1734324448636,0.7484507,104470.0,104450.0,0.35553793]
[1734324449257,0.5569967,104470.0,104450.0,0.35553793]
[1734324449485,0.462706,104470.0,104450.0,0.35553793]
[1734324449711,0.65416,104470.0,104450.0,0.35553793]
[1734324452355,0.19146,104460.0,104450.0,0.1500863]
[1734324452557,0.19146,104460.0,104450.0,8.63e-05]
[1734324453056,0.27086,104460.0,104450.0,8.63e-05]
[1734324459618,0.52664538,104470.0,104450.0,0.1915653]
[1734324461429,0.71810038,104470.0,104450.0,0.1915653]
[1734324462057,0.52664538,104470.0,104450.0,0.1915653]
[1734324462256,0.71809938,104470.0,104450.0,0.1915653]
[1734324462661,0.52664538,104470.0,104450.0,0.1915653]
[1734324463541,0.52664538,104470.0,104450.0,0.3830443]
[1734324464582,0.61246939,104470.0,104450.0,0.3830443]
[1734324464720,0.52664538,104470.0,104450.0,0.3830443]
[1734324465333,0.01914238,104470.0,104450.0,0.4605303]
[1734324465537,0.51556985,104480.0,104470.0,0.191442]
[1734324465765,0.00056427,104480.0,104470.0,0.191442]
[1734324466826,0.00056427,104480.0,104470.0,0.317442]
[1734324471328,0.00056427,104480.0,104470.0,0.3306935]
[1734324472548,0.12486427,104480.0,104470.0,0.2046935]
[1734324477843,0.12486427,104480.0,104470.0,0.191442]
[1734324478202,0.12503687,104480.0,104470.0,0.191442]
[1734324479159,0.31646087,104480.0,104460.0,0.724342]
[1734324481391,0.31646087,104480.0,104460.0,0.7374418]
[1734324481583,0.31646087,104480.0,104470.0,0.191442]
[1734324481753,0.12503687,104480.0,104470.0,0.191442]
[1734324485343,0.00073687,104480.0,104470.0,0.191442]
[1734324485516,0.00073687,104480.0,104470.0,0.24807949]
[1734324485733,0.00073687,104480.0,104470.0,0.34237019]
[1734324485978,0.00073687,104480.0,104470.0,0.61467019]
[1734324487451,0.00073687,104480.0,104470.0,0.5580327]
[1734324487653,0.00073687,104480.0,104470.0,0.341442]
[1734324489525,0.0827,104490.0,104470.0,0.341442]
[1734324489728,0.0827,104490.0,104470.0,0.34200627]
[1734324489927,0.274108,104490.0,104470.0,0.72486527]
[1734324490799,0.0001726,104480.0,104470.0,0.53342327]
[1734324494431,0.20828059,104490.0,104470.0,0.53342327]